{"text_format":"1","workbook":"xlsx","n_sheets":4,"sheets":["data","الكشف","ورقة4 (2)","ورقة1"],"not_rendered":{"charts":0,"images":0,"macros":1,"external_links":1,"defined_names":9,"comments":0,"pivot_tables":0},"unopened":[],"bounds":{"document_bytes":16777216,"sheet_cells":100000,"rows_first":2000,"rows_last":500,"rows_between":2000,"halvings":0,"cell_chars":16384,"cell_head_chars":4096},"cells_cut":0,"cells_raw":0,"read":"whole","date_system":"1900"}

{"sheet":"data","index":0,"n_rows":997,"n_cols":16,"rows_kept":997,"cut":false,"hidden":false,"merged":[]}
[null,null,null,{"$f":"VLOOKUP(F1,B3:D997,3,FALSE)","v":{"$error":"#N/A"}},null,"كمال الحامد",{"$f":"IF(D1=1,1,2)","v":{"$error":"#N/A"}},null,null,"مـــدفوع نقداً",null,1,null,"نظيـــــــــف "]
[null,"الاسم",null,null,null,null,null,null,null,"ــــــــــــــــ",null,2,null,"نص بنص"]
[null,null,"علي عبدالله ",{"$f":"IF(B3=$F$1,1,2)","v":2},null,null,null,null,null,"آجل على شاكر",null,3,null,"عـــــــــــادي",null,"بوابـــــة الشركـــــة 1"]
[null,null,"محسن",{"$f":"IF(B4=$F$1,1,2)","v":2},null,null,null,null,null,"آجل على صالح",null,4,null,"راس عطل",null,"بوابـــــة الشركـــــة 2"]
[null,null,"خالد",2,null,null,null,null,null,"آجل على فهمي",null,5,null,"قاعدة مكسرة",null,"بوابـــــة الشركـــــة 3"]
[null,null,"عمر",2,null,null,null,null,null,null,null,6,null,"علية باقي",null,"بوابـــــة الشركـــــة 4"]
[null,null,"صالح",2,null,null,null,null,null,null,null,7,null,"نوع جديد",null,"بوابـــــة الشركـــــة 5"]
[null,null,"فهمي",2,null,null,null,null,null,null,null,null,null,"سعــــودي",null,"بوابـــــة الشركـــــة 6"]
[null,null,"محمد",2,null,null,null,null,null,"aa",null,"صال",null,"cc",null,"محمد سعيد باناعمة"]
[null,null,"سعيد",2,null,null,null,null,null,null,null,null,null,null,null,"عيظة بن جوبح"]
[null,null,"علي يسلم",2,null,null,null,null,null,null,null,null,null,null,null,"كمال الحامد"]
[null,null,"خليل",2,null,null,null,null,null,null,null,null,null,null,null,"صالح باشجين "]
[null,null,null,2,null,null,null,null,null,null,null,null,null,null,null,"فهمي بابراهيم"]
[null,null,null,2,null,null,null,null,null,null,null,null,null,null,null,"شاكر عوض عرم"]
[null,null,null,2,null,null,null,null,null,null,null,null,null,null,null,"احمد باجري"]
[null,null,null,2,null,null,null,null,null,null,null,null,null,null,null,"عوض سعيد عرم"]
[null,null,null,2,null,null,null,null,null,null,null,null,null,null,null,"عبدالرحمن مزروع"]
[null,null,null,2,null,null,null,null,null,null,null,null,null,null,null,"هاني صالح عرم"]
[null,null,null,2,null,null,null,null,null,null,null,null,null,null,null,"عبدالله عبدالرحمن الحامد"]
[null,null,null,2,null,null,null,null,null,null,null,null,null,null,null,"صالح عمر البيتي"]
[null,null,null,2,null,null,null,null,null,null,null,null,null,null,null,"ام مهدي باجيل"]
[null,null,null,2,null,null,null,null,null,null,null,null,null,null,null,"عارف بن شملة"]
[null,null,null,2,null,null,null,null,null,null,null,null,null,null,null,"سالم بن كليب"]
[null,null,null,2,null,null,null,null,null,null,null,null,null,null,null,"صالح النهدي"]
[null,null,null,2,null,null,null,null,null,null,null,null,null,null,null,"سالم عبدالمانع"]
[null,null,null,2,null,null,null,null,null,null,null,null,null,null,null,"عبدالله باعوراء"]
[null,null,null,2,null,null,null,null,null,null,null,null,null,null,null,"يسلم البابكري"]
[null,null,null,2,null,null,null,null,null,null,null,null,null,null,null,"هادي احمد باعيسى"]
[null,null,null,2,null,null,null,null,null,null,null,null,null,null,null,"علي صبري باجعالة"]
[null,null,null,2,null,null,null,null,null,null,null,null,null,null,null,"عبدالرحمن بن عبدالحق"]
[null,null,null,2,null,null,null,null,null,null,null,null,null,null,null,"سبيت مطران"]
[null,null,null,2,null,null,null,null,null,null,null,null,null,null,null,"قحطان النهدي"]
[null,null,null,2,null,null,null,null,null,null,null,null,null,null,null,"محمد سعيد باقاسم"]
[null,null,null,2,null,null,null,null,null,null,null,null,null,null,null,"سالم الصافي"]
[null,null,null,2,null,null,null,null,null,null,null,null,null,null,null,"صالح الصافي"]
[null,null,null,2,null,null,null,null,null,null,null,null,null,null,null,"احمد العمودي"]
[null,null,null,2,null,null,null,null,null,null,null,null,null,null,null,"محمد الخلاقي"]
[null,null,null,2,null,null,null,null,null,null,null,null,null,null,null,"اشرف دحدوح"]
[null,null,null,2,null,null,null,null,null,null,null,null,null,null,null,"موسى امين البحري"]
[null,null,null,2,null,null,null,null,null,null,null,null,null,null,null,"عبدالرحمن باداؤد"]
[null,null,null,2,null,null,null,null,null,null,null,null,null,null,null,"محمد باداؤد"]
[null,null,null,2,null,null,null,null,null,null,null,null,null,null,null,"عبدالعزيز باداؤد"]
[null,null,null,2,null,null,null,null,null,null,null,null,null,null,null,"راضي بارحمان"]
[null,null,null,2,null,null,null,null,null,null,null,null,null,null,null,"عبدالله باخشوين "]
[null,null,null,2,null,null,null,null,null,null,null,null,null,null,null,"صالح باياسين"]
[null,null,null,2,null,null,null,null,null,null,null,null,null,null,null,"احمد سالم المشجري"]
[null,null,null,2,null,null,null,null,null,null,null,null,null,null,null,"عمر عبدالله باقاسم "]
[null,null,null,2,null,null,null,null,null,null,null,null,null,null,null,"ايمن ناصر باخشوين"]
[null,null,null,2,null,null,null,null,null,null,null,null,null,null,null,"صالح عبدالله البريكي"]
[null,null,null,2,null,null,null,null,null,null,null,null,null,null,null,"احمد عمر بالعمش"]
[null,null,null,2,null,null,null,null,null,null,null,null,null,null,null,"مهدي عمر بازغيفان"]
[null,null,null,2,null,null,null,null,null,null,null,null,null,null,null,"اديب محمد باجعالة "]
[null,null,null,2,null,null,null,null,null,null,null,null,null,null,null,"يونس علي باقطيان"]
[null,null,null,2,null,null,null,null,null,null,null,null,null,null,null,"عبدالله احمد باقطيان"]
[null,null,null,2,null,null,null,null,null,null,null,null,null,null,null,"محمد احمد باقطيان"]
[null,null,null,2,null,null,null,null,null,null,null,null,null,null,null,"محمد عبدالله بازغيفان"]
[null,null,null,2,null,null,null,null,null,null,null,null,null,null,null,"عبدالله عمر بازغيفان"]
[null,null,null,2,null,null,null,null,null,null,null,null,null,null,null,"عصام بانواس"]
[null,null,null,2,null,null,null,null,null,null,null,null,null,null,null,"خالد سالم بارجاش"]
[null,null,null,2,null,null,null,null,null,null,null,null,null,null,null,"سالم يسلم بادويل"]
[null,null,null,2,null,null,null,null,null,null,null,null,null,null,null,"صالح يسلم بادويل"]
[null,null,null,2,null,null,null,null,null,null,null,null,null,null,null,"خالد محمد باخرش"]
[null,null,null,2,null,null,null,null,null,null,null,null,null,null,null,"عبدالله سعيد النجار"]
[null,null,null,2,null,null,null,null,null,null,null,null,null,null,null,"سعيد احمد بن ربيعة"]
[null,null,null,2,null,null,null,null,null,null,null,null,null,null,null,"عبدالله عيظة باخرش"]
[null,null,null,2,null,null,null,null,null,null,null,null,null,null,null,"عيظة سالم باخرش"]
[null,null,null,2,null,null,null,null,null,null,null,null,null,null,null,"محمد عيظة باخرش"]
[null,null,null,{"$f":"IF(B68=$F$1,1,2)","v":2},null,null,null,null,null,null,null,null,null,null,null,"ابراهيم محمد الصورعي "]
[null,null,null,2,null,null,null,null,null,null,null,null,null,null,null,"ابراهيم قائد"]
[null,null,null,2,null,null,null,null,null,null,null,null,null,null,null,"راتب الشعري"]
[null,null,null,2,null,null,null,null,null,null,null,null,null,null,null,"علي سعيد القحوم"]
[null,null,null,2,null,null,null,null,null,null,null,null,null,null,null,"عبدالمجيد صالح بلبحيث"]
[null,null,null,2,null,null,null,null,null,null,null,null,null,null,null,"هادي محمد الحامدي"]
[null,null,null,2,null,null,null,null,null,null,null,null,null,null,null,"علي عبود باجخيف"]
[null,null,null,2,null,null,null,null,null,null,null,null,null,null,null,"جمال باجخيف"]
[null,null,null,2,null,null,null,null,null,null,null,null,null,null,null,"محمد سعيد باطرفي"]
[null,null,null,2,null,null,null,null,null,null,null,null,null,null,null,"مكرم سعيد باطرفي"]
[null,null,null,2,null,null,null,null,null,null,null,null,null,null,null,"خالد بوزيدان"]
[null,null,null,2,null,null,null,null,null,null,null,null,null,null,null,"عمر احمد باخشب"]
[null,null,null,2,null,null,null,null,null,null,null,null,null,null,null,"عبدالله سليمان بن عجاج"]
[null,null,null,2,null,null,null,null,null,null,null,null,null,null,null,"بادر احمد باقروان"]
[null,null,null,2,null,null,null,null,null,null,null,null,null,null,null,"ابوبكر بن مسلم"]
[null,null,null,2,null,null,null,null,null,null,null,null,null,null,null,"محمد صالح الحامدي "]
[null,null,null,2,null,null,null,null,null,null,null,null,null,null,null,"سالم صالح الحامدي"]
[null,null,null,2,null,null,null,null,null,null,null,null,null,null,null,"سعيد باجخيف"]
[null,null,null,2,null,null,null,null,null,null,null,null,null,null,null,"سالم عبدالله باقروان"]
[null,null,null,2,null,null,null,null,null,null,null,null,null,null,null,"علي عبدالله باقروان"]
[null,null,null,2,null,null,null,null,null,null,null,null,null,null,null,"يوسف بامسلم"]
[null,null,null,2,null,null,null,null,null,null,null,null,null,null,null,"فواز باديان "]
[null,null,null,2,null,null,null,null,null,null,null,null,null,null,null,"علي ناصر بن سريع "]
[null,null,null,2,null,null,null,null,null,null,null,null,null,null,null,"عبدالله صالح الديني"]
[null,null,null,2,null,null,null,null,null,null,null,null,null,null,null,"صالح عبدالله الديني"]
[null,null,null,2,null,null,null,null,null,null,null,null,null,null,null,"ابراهيم قاسم البعداني"]
[null,null,null,2,null,null,null,null,null,null,null,null,null,null,null,"عامر عمر باجحاو"]
[null,null,null,2,null,null,null,null,null,null,null,null,null,null,null,"سالم ناصر باجحاو"]
[null,null,null,2,null,null,null,null,null,null,null,null,null,null,null,"مبارك ناصر باجحاو"]
[null,null,null,2,null,null,null,null,null,null,null,null,null,null,null,"رياض الحاشدي"]
[null,null,null,2,null,null,null,null,null,null,null,null,null,null,null,"شوقي العولقي"]
[null,null,null,2,null,null,null,null,null,null,null,null,null,null,null,"شاكر محروس باحكيم "]
[null,null,null,2,null,null,null,null,null,null,null,null,null,null,null,"مهدي محروس باحكيم "]
[null,null,null,2,null,null,null,null,null,null,null,null,null,null,null,"محمد عبدالحكيم باحكيم "]
[null,null,null,2,null,null,null,null,null,null,null,null,null,null,null,"طارق عبدالحكيم باحكيم "]
[null,null,null,2,null,null,null,null,null,null,null,null,null,null,null,"محمد سعيد بفلح"]
[null,null,null,2,null,null,null,null,null,null,null,null,null,null,null,"حمزة عوض باحكيم"]
[null,null,null,2,null,null,null,null,null,null,null,null,null,null,null,"عبدالله حسين باعلوي"]
[null,null,null,2,null,null,null,null,null,null,null,null,null,null,null,"فؤاد جوبان"]
[null,null,null,2,null,null,null,null,null,null,null,null,null,null,null,"خالد يسلم السومحي"]
[null,null,null,2,null,null,null,null,null,null,null,null,null,null,null,"سالم سعيد باسلامة"]
[null,null,null,2,null,null,null,null,null,null,null,null,null,null,null,"عبدالمجيد سعيد باسلامة"]
[null,null,null,2,null,null,null,null,null,null,null,null,null,null,null,"محمد عبده صالح نصاري"]
[null,null,null,2,null,null,null,null,null,null,null,null,null,null,null,"دحمان سعيد العمودي"]
[null,null,null,2,null,null,null,null,null,null,null,null,null,null,null,"محمد دحمان سعيد العمودي"]
[null,null,null,2,null,null,null,null,null,null,null,null,null,null,null,"خالد جمال باقطمي"]
[null,null,null,2,null,null,null,null,null,null,null,null,null,null,null,"مسعد علي باقطمي"]
[null,null,null,2,null,null,null,null,null,null,null,null,null,null,null,"غازي علي باقطمي"]
[null,null,null,2,null,null,null,null,null,null,null,null,null,null,null,"يوسف سعد باقطمي"]
[null,null,null,2,null,null,null,null,null,null,null,null,null,null,null,"ياسر باشعيب"]
[null,null,null,2,null,null,null,null,null,null,null,null,null,null,null,"عائض بن علي جابر"]
[null,null,null,2,null,null,null,null,null,null,null,null,null,null,null,"عسكر بن علي جابر"]
[null,null,null,2,null,null,null,null,null,null,null,null,null,null,null,"ابراهيم بن علي جابر"]
[null,null,null,2,null,null,null,null,null,null,null,null,null,null,null,"محمد عبدالله بابلغوم"]
[null,null,null,2,null,null,null,null,null,null,null,null,null,null,null,"عبدالله فهمي بن ظبي"]
[null,null,null,2,null,null,null,null,null,null,null,null,null,null,null,"فواز عبدالله اليافعي"]
[null,null,null,2,null,null,null,null,null,null,null,null,null,null,null,"احمد ناصر باقطمي"]
[null,null,null,2,null,null,null,null,null,null,null,null,null,null,null,"احمد عبدالله مهدي باقطمي"]
[null,null,null,2,null,null,null,null,null,null,null,null,null,null,null,"سعيد محمد بافاس"]
[null,null,null,2,null,null,null,null,null,null,null,null,null,null,null,"تركي عيظه بن جوبح"]
[null,null,null,2,null,null,null,null,null,null,null,null,null,null,null,"محمد جلال العدني"]
[null,null,null,2,null,null,null,null,null,null,null,null,null,null,null,"عبدالله صالح بن غانم"]
[null,null,null,2,null,null,null,null,null,null,null,null,null,null,null,"محمد عمر بن علوان "]
[null,null,null,2,null,null,null,null,null,null,null,null,null,null,null,"سليمان علي باقروان"]
[null,null,null,{"$f":"IF(B132=$F$1,1,2)","v":2},null,null,null,null,null,null,null,null,null,null,null,"علي سليمان باقروان"]
[null,null,null,2,null,null,null,null,null,null,null,null,null,null,null,"عمر عبدالله بابلغوم "]
[null,null,null,2,null,null,null,null,null,null,null,null,null,null,null,"صادق محسن المشجري"]
[null,null,null,2,null,null,null,null,null,null,null,null,null,null,null,"محمد فهد بادخن"]
[null,null,null,2,null,null,null,null,null,null,null,null,null,null,null,"عبدالله علي باعباد"]
[null,null,null,2,null,null,null,null,null,null,null,null,null,null,null,"محسن احمد بامرحول"]
[null,null,null,2,null,null,null,null,null,null,null,null,null,null,null,"صالح محسن العولقي"]
[null,null,null,2,null,null,null,null,null,null,null,null,null,null,null,"خالد وليد الشمالي"]
[null,null,null,2,null,null,null,null,null,null,null,null,null,null,null,"علي سالم اليزيدي"]
[null,null,null,2,null,null,null,null,null,null,null,null,null,null,null,"عبدالله علي بارشيد"]
[null,null,null,2,null,null,null,null,null,null,null,null,null,null,null,"محسن عيظه المنصوري"]
[null,null,null,2,null,null,null,null,null,null,null,null,null,null,null,"احمد ناصر الواحدي"]
[null,null,null,2,null,null,null,null,null,null,null,null,null,null,null,"عبدالفتاح صالح الواحدي "]
[null,null,null,2,null,null,null,null,null,null,null,null,null,null,null,"عبدالعليم حسن المحمدي"]
[null,null,null,2,null,null,null,null,null,null,null,null,null,null,null,"خالد عبداللاه باشيبه"]
[null,null,null,2,null,null,null,null,null,null,null,null,null,null,null,"عبدالله محمد بامعيض"]
[null,null,null,2,null,null,null,null,null,null,null,null,null,null,null,"عبدالعزيز احمد بادبيان"]
[null,null,null,2,null,null,null,null,null,null,null,null,null,null,null,"خالد سعيد الكثيري"]
[null,null,null,2,null,null,null,null,null,null,null,null,null,null,null,"خالد فؤاد باعوضه"]
[null,null,null,2,null,null,null,null,null,null,null,null,null,null,null,"احمد سالم الداعر"]
[null,null,null,2,null,null,null,null,null,null,null,null,null,null,null,"خالد عبدالله باطرفي"]
[null,null,null,2,null,null,null,null,null,null,null,null,null,null,null,"احمد محمد باظروس"]
[null,null,null,2,null,null,null,null,null,null,null,null,null,null,null,"عبدالله احمد باظروس"]
[null,null,null,2,null,null,null,null,null,null,null,null,null,null,null,"احمد عبدالسلام بافقير"]
[null,null,null,2,null,null,null,null,null,null,null,null,null,null,null,"سالم صالح باقطمي"]
[null,null,null,2,null,null,null,null,null,null,null,null,null,null,null,"احمد صالح باطوق"]
[null,null,null,2,null,null,null,null,null,null,null,null,null,null,null,"فوزي عبدالله بن ظبي"]
[null,null,null,2,null,null,null,null,null,null,null,null,null,null,null,"سعيد محمد باوزير"]
[null,null,null,2,null,null,null,null,null,null,null,null,null,null,null,"احمد عبدالله باعباد"]
[null,null,null,2,null,null,null,null,null,null,null,null,null,null,null,"اصيل احمد باظروس"]
[null,null,null,2,null,null,null,null,null,null,null,null,null,null,null,"محمد جمعان بادخن"]
[null,null,null,2,null,null,null,null,null,null,null,null,null,null,null,"ريان علي بارجاش"]
[null,null,null,2,null,null,null,null,null,null,null,null,null,null,null,"احمد بن الشيبة "]
[null,null,null,2,null,null,null,null,null,null,null,null,null,null,null,"احمد محفوظ بن سلم"]
[null,null,null,2,null,null,null,null,null,null,null,null,null,null,null,"عبدالرحمن محسن باوزير"]
[null,null,null,2,null,null,null,null,null,null,null,null,null,null,null,"علي صالح باراس"]
[null,null,null,2,null,null,null,null,null,null,null,null,null,null,null,"عبدالله مبارك لقلف"]
[null,null,null,2,null,null,null,null,null,null,null,null,null,null,null,"علي احمد باجندوح"]
[null,null,null,2,null,null,null,null,null,null,null,null,null,null,null,"احمد سعيد المنصب"]
[null,null,null,2,null,null,null,null,null,null,null,null,null,null,null,"محمد بن حميد"]
[null,null,null,2,null,null,null,null,null,null,null,null,null,null,null,"سالم صالح بن مخاشن "]
[null,null,null,2,null,null,null,null,null,null,null,null,null,null,null,"فايز برك الكثيري "]
[null,null,null,2,null,null,null,null,null,null,null,null,null,null,null,"رضوان مزاحم بامزاحم "]
[null,null,null,2,null,null,null,null,null,null,null,null,null,null,null,"عبدالعزيز سالم بن لحول"]
[null,null,null,2,null,null,null,null,null,null,null,null,null,null,null,"كمال باجخيف"]
[null,null,null,2,null,null,null,null,null,null,null,null,null,null,null,"احمد عمر باحموه"]
[null,null,null,2,null,null,null,null,null,null,null,null,null,null,null,"عمر علي المشجري"]
[null,null,null,2,null,null,null,null,null,null,null,null,null,null,null,"محمد عمر المشجري"]
[null,null,null,2,null,null,null,null,null,null,null,null,null,null,null,"محمد علي مول الدويلة"]
[null,null,null,2,null,null,null,null,null,null,null,null,null,null,null,"صالح سعيد باسوى"]
[null,null,null,2,null,null,null,null,null,null,null,null,null,null,null,"وسيم صالح باسوى"]
[null,null,null,2,null,null,null,null,null,null,null,null,null,null,null,"عبدالرحمن باعشن"]
[null,null,null,2,null,null,null,null,null,null,null,null,null,null,null,"اوسان ناصر المرفدي"]
[null,null,null,2,null,null,null,null,null,null,null,null,null,null,null,"اوراس ناصر المرفدي"]
[null,null,null,2,null,null,null,null,null,null,null,null,null,null,null,"محمد محمد الصورعي"]
[null,null,null,2,null,null,null,null,null,null,null,null,null,null,null,"محمد سالم المشجري"]
[null,null,null,2,null,null,null,null,null,null,null,null,null,null,null,"عمر ناصر بلحول "]
[null,null,null,2,null,null,null,null,null,null,null,null,null,null,null,"خالد عمر البيتي"]
[null,null,null,2,null,null,null,null,null,null,null,null,null,null,null,"عبدالله بن الفقية"]
[null,null,null,2,null,null,null,null,null,null,null,null,null,null,null,"عبدالقادر بفلح"]
[null,null,null,2,null,null,null,null,null,null,null,null,null,null,null,"عبدالله بفلح"]
[null,null,null,2,null,null,null,null,null,null,null,null,null,null,null,"سالم فهد باجرفان"]
[null,null,null,2,null,null,null,null,null,null,null,null,null,null,null,"احمد باجنيد"]
[null,null,null,2,null,null,null,null,null,null,null,null,null,null,null,"محمد بلعرب"]
[null,null,null,{"$f":"IF(B196=$F$1,1,2)","v":2},null,null,null,null,null,null,null,null,null,null,null,"يسلم عمر المحمدي"]
[null,null,null,2,null,null,null,null,null,null,null,null,null,null,null,"عبدالعزيز احمد المحمدي"]
[null,null,null,2,null,null,null,null,null,null,null,null,null,null,null,"عادل عبدالقادر عبدالمانع"]
[null,null,null,2,null,null,null,null,null,null,null,null,null,null,null,"منصور محسن باكيلي"]
[null,null,null,2,null,null,null,null,null,null,null,null,null,null,null,"سالم حنش العبادي"]
[null,null,null,2,null,null,null,null,null,null,null,null,null,null,null,"ياسين علي عمر الاحمدي"]
[null,null,null,2,null,null,null,null,null,null,null,null,null,null,null,"عبدالله اليزيدي"]
[null,null,null,2]
[null,null,null,2]
[null,null,null,2]
[null,null,null,2]
[null,null,null,2]
[null,null,null,2]
[null,null,null,2]
[null,null,null,2]
[null,null,null,2]
[null,null,null,2]
[null,null,null,2]
[null,null,null,2]
[null,null,null,2]
[null,null,null,2]
[null,null,null,2]
[null,null,null,2]
[null,null,null,2]
[null,null,null,2]
[null,null,null,2]
[null,null,null,2]
[null,null,null,2]
[null,null,null,2]
[null,null,null,2]
[null,null,null,2]
[null,null,null,2]
[null,null,null,2]
[null,null,null,2]
[null,null,null,2]
[null,null,null,2]
[null,null,null,2]
[null,null,null,2]
[null,null,null,2]
[null,null,null,2]
[null,null,null,2]
[null,null,null,2]
[null,null,null,2]
[null,null,null,2]
[null,null,null,2]
[null,null,null,2]
[null,null,null,2]
[null,null,null,2]
[null,null,null,2]
[null,null,null,2]
[null,null,null,2]
[null,null,null,2]
[null,null,null,2]
[null,null,null,2]
[null,null,null,2]
[null,null,null,2]
[null,null,null,2]
[null,null,null,2]
[null,null,null,2]
[null,null,null,2]
[null,null,null,2]
[null,null,null,2]
[null,null,null,2]
[null,null,null,2]
[null,null,null,{"$f":"IF(B260=$F$1,1,2)","v":2}]
[null,null,null,2]
[null,null,null,2]
[null,null,null,2]
[null,null,null,2]
[null,null,null,2]
[null,null,null,2]
[null,null,null,2]
[null,null,null,2]
[null,null,null,2]
[null,null,null,2]
[null,null,null,2]
[null,null,null,2]
[null,null,null,2]
[null,null,null,2]
[null,null,null,2]
[null,null,null,2]
[null,null,null,2]
[null,null,null,2]
[null,null,null,2]
[null,null,null,2]
[null,null,null,2]
[null,null,null,2]
[null,null,null,2]
[null,null,null,2]
[null,null,null,2]
[null,null,null,2]
[null,null,null,2]
[null,null,null,2]
[null,null,null,2]
[null,null,null,2]
[null,null,null,2]
[null,null,null,2]
[null,null,null,2]
[null,null,null,2]
[null,null,null,2]
[null,null,null,2]
[null,null,null,2]
[null,null,null,2]
[null,null,null,2]
[null,null,null,2]
[null,null,null,2]
[null,null,null,2]
[null,null,null,2]
[null,null,null,2]
[null,null,null,2]
[null,null,null,2]
[null,null,null,2]
[null,null,null,2]
[null,null,null,2]
[null,null,null,2]
[null,null,null,2]
[null,null,null,2]
[null,null,null,2]
[null,null,null,2]
[null,null,null,2]
[null,null,null,2]
[null,null,null,2]
[null,null,null,2]
[null,null,null,2]
[null,null,null,2]
[null,null,null,2]
[null,null,null,2]
[null,null,null,2]
[null,null,null,{"$f":"IF(B324=$F$1,1,2)","v":2}]
[null,null,null,2]
[null,null,null,2]
[null,null,null,2]
[null,null,null,2]
[null,null,null,2]
[null,null,null,2]
[null,null,null,2]
[null,null,null,2]
[null,null,null,2]
[null,null,null,2]
[null,null,null,2]
[null,null,null,2]
[null,null,null,2]
[null,null,null,2]
[null,null,null,2]
[null,null,null,2]
[null,null,null,2]
[null,null,null,2]
[null,null,null,2]
[null,null,null,2]
[null,null,null,2]
[null,null,null,2]
[null,null,null,2]
[null,null,null,2]
[null,null,null,2]
[null,null,null,2]
[null,null,null,2]
[null,null,null,2]
[null,null,null,2]
[null,null,null,2]
[null,null,null,2]
[null,null,null,2]
[null,null,null,2]
[null,null,null,2]
[null,null,null,2]
[null,null,null,2]
[null,null,null,2]
[null,null,null,2]
[null,null,null,2]
[null,null,null,2]
[null,null,null,2]
[null,null,null,2]
[null,null,null,2]
[null,null,null,2]
[null,null,null,2]
[null,null,null,2]
[null,null,null,2]
[null,null,null,2]
[null,null,null,2]
[null,null,null,2]
[null,null,null,2]
[null,null,null,2]
[null,null,null,2]
[null,null,null,2]
[null,null,null,2]
[null,null,null,2]
[null,null,null,2]
[null,null,null,2]
[null,null,null,2]
[null,null,null,2]
[null,null,null,2]
[null,null,null,2]
[null,null,null,2]
[null,null,null,{"$f":"IF(B388=$F$1,1,2)","v":2}]
[null,null,null,2]
[null,null,null,2]
[null,null,null,2]
[null,null,null,2]
[null,null,null,2]
[null,null,null,2]
[null,null,null,2]
[null,null,null,2]
[null,null,null,2]
[null,null,null,2]
[null,null,null,2]
[null,null,null,2]
[null,null,null,2]
[null,null,null,2]
[null,null,null,2]
[null,null,null,2]
[null,null,null,2]
[null,null,null,2]
[null,null,null,2]
[null,null,null,2]
[null,null,null,2]
[null,null,null,2]
[null,null,null,2]
[null,null,null,2]
[null,null,null,2]
[null,null,null,2]
[null,null,null,2]
[null,null,null,2]
[null,null,null,2]
[null,null,null,2]
[null,null,null,2]
[null,null,null,2]
[null,null,null,2]
[null,null,null,2]
[null,null,null,2]
[null,null,null,2]
[null,null,null,2]
[null,null,null,2]
[null,null,null,2]
[null,null,null,2]
[null,null,null,2]
[null,null,null,2]
[null,null,null,2]
[null,null,null,2]
[null,null,null,2]
[null,null,null,2]
[null,null,null,2]
[null,null,null,2]
[null,null,null,2]
[null,null,null,2]
[null,null,null,2]
[null,null,null,2]
[null,null,null,2]
[null,null,null,2]
[null,null,null,2]
[null,null,null,2]
[null,null,null,2]
[null,null,null,2]
[null,null,null,2]
[null,null,null,2]
[null,null,null,2]
[null,null,null,2]
[null,null,null,2]
[null,null,null,{"$f":"IF(B452=$F$1,1,2)","v":2}]
[null,null,null,2]
[null,null,null,2]
[null,null,null,2]
[null,null,null,2]
[null,null,null,2]
[null,null,null,2]
[null,null,null,2]
[null,null,null,2]
[null,null,null,2]
[null,null,null,2]
[null,null,null,2]
[null,null,null,2]
[null,null,null,2]
[null,null,null,2]
[null,null,null,2]
[null,null,null,2]
[null,null,null,2]
[null,null,null,2]
[null,null,null,2]
[null,null,null,2]
[null,null,null,2]
[null,null,null,2]
[null,null,null,2]
[null,null,null,2]
[null,null,null,2]
[null,null,null,2]
[null,null,null,2]
[null,null,null,2]
[null,null,null,2]
[null,null,null,2]
[null,null,null,2]
[null,null,null,2]
[null,null,null,2]
[null,null,null,2]
[null,null,null,2]
[null,null,null,2]
[null,null,null,2]
[null,null,null,2]
[null,null,null,2]
[null,null,null,2]
[null,null,null,2]
[null,null,null,2]
[null,null,null,2]
[null,null,null,2]
[null,null,null,2]
[null,null,null,2]
[null,null,null,2]
[null,null,null,2]
[null,null,null,2]
[null,null,null,2]
[null,null,null,2]
[null,null,null,2]
[null,null,null,2]
[null,null,null,2]
[null,null,null,2]
[null,null,null,2]
[null,null,null,2]
[null,null,null,2]
[null,null,null,2]
[null,null,null,2]
[null,null,null,2]
[null,null,null,2]
[null,null,null,2]
[null,null,null,{"$f":"IF(B516=$F$1,1,2)","v":2}]
[null,null,null,2]
[null,null,null,2]
[null,null,null,2]
[null,null,null,2]
[null,null,null,2]
[null,null,null,2]
[null,null,null,2]
[null,null,null,2]
[null,null,null,2]
[null,null,null,2]
[null,null,null,2]
[null,null,null,2]
[null,null,null,2]
[null,null,null,2]
[null,null,null,2]
[null,null,null,2]
[null,null,null,2]
[null,null,null,2]
[null,null,null,2]
[null,null,null,2]
[null,null,null,2]
[null,null,null,2]
[null,null,null,2]
[null,null,null,2]
[null,null,null,2]
[null,null,null,2]
[null,null,null,2]
[null,null,null,2]
[null,null,null,2]
[null,null,null,2]
[null,null,null,2]
[null,null,null,2]
[null,null,null,2]
[null,null,null,2]
[null,null,null,2]
[null,null,null,2]
[null,null,null,2]
[null,null,null,2]
[null,null,null,2]
[null,null,null,2]
[null,null,null,2]
[null,null,null,2]
[null,null,null,2]
[null,null,null,2]
[null,null,null,2]
[null,null,null,2]
[null,null,null,2]
[null,null,null,2]
[null,null,null,2]
[null,null,null,2]
[null,null,null,2]
[null,null,null,2]
[null,null,null,2]
[null,null,null,2]
[null,null,null,2]
[null,null,null,2]
[null,null,null,2]
[null,null,null,2]
[null,null,null,2]
[null,null,null,2]
[null,null,null,2]
[null,null,null,2]
[null,null,null,2]
[null,null,null,{"$f":"IF(B580=$F$1,1,2)","v":2}]
[null,null,null,2]
[null,null,null,2]
[null,null,null,2]
[null,null,null,2]
[null,null,null,2]
[null,null,null,2]
[null,null,null,2]
[null,null,null,2]
[null,null,null,2]
[null,null,null,2]
[null,null,null,2]
[null,null,null,2]
[null,null,null,2]
[null,null,null,2]
[null,null,null,2]
[null,null,null,2]
[null,null,null,2]
[null,null,null,2]
[null,null,null,2]
[null,null,null,2]
[null,null,null,2]
[null,null,null,2]
[null,null,null,2]
[null,null,null,2]
[null,null,null,2]
[null,null,null,2]
[null,null,null,2]
[null,null,null,2]
[null,null,null,2]
[null,null,null,2]
[null,null,null,2]
[null,null,null,2]
[null,null,null,2]
[null,null,null,2]
[null,null,null,2]
[null,null,null,2]
[null,null,null,2]
[null,null,null,2]
[null,null,null,2]
[null,null,null,2]
[null,null,null,2]
[null,null,null,2]
[null,null,null,2]
[null,null,null,2]
[null,null,null,2]
[null,null,null,2]
[null,null,null,2]
[null,null,null,2]
[null,null,null,2]
[null,null,null,2]
[null,null,null,2]
[null,null,null,2]
[null,null,null,2]
[null,null,null,2]
[null,null,null,2]
[null,null,null,2]
[null,null,null,2]
[null,null,null,2]
[null,null,null,2]
[null,null,null,2]
[null,null,null,2]
[null,null,null,2]
[null,null,null,2]
[null,null,null,{"$f":"IF(B644=$F$1,1,2)","v":2}]
[null,null,null,2]
[null,null,null,2]
[null,null,null,2]
[null,null,null,2]
[null,null,null,2]
[null,null,null,2]
[null,null,null,2]
[null,null,null,2]
[null,null,null,2]
[null,null,null,2]
[null,null,null,2]
[null,null,null,2]
[null,null,null,2]
[null,null,null,2]
[null,null,null,2]
[null,null,null,2]
[null,null,null,2]
[null,null,null,2]
[null,null,null,2]
[null,null,null,2]
[null,null,null,2]
[null,null,null,2]
[null,null,null,2]
[null,null,null,2]
[null,null,null,2]
[null,null,null,2]
[null,null,null,2]
[null,null,null,2]
[null,null,null,2]
[null,null,null,2]
[null,null,null,2]
[null,null,null,2]
[null,null,null,2]
[null,null,null,2]
[null,null,null,2]
[null,null,null,2]
[null,null,null,2]
[null,null,null,2]
[null,null,null,2]
[null,null,null,2]
[null,null,null,2]
[null,null,null,2]
[null,null,null,2]
[null,null,null,2]
[null,null,null,2]
[null,null,null,2]
[null,null,null,2]
[null,null,null,2]
[null,null,null,2]
[null,null,null,2]
[null,null,null,2]
[null,null,null,2]
[null,null,null,2]
[null,null,null,2]
[null,null,null,2]
[null,null,null,2]
[null,null,null,2]
[null,null,null,2]
[null,null,null,2]
[null,null,null,2]
[null,null,null,2]
[null,null,null,2]
[null,null,null,2]
[null,null,null,{"$f":"IF(B708=$F$1,1,2)","v":2}]
[null,null,null,2]
[null,null,null,2]
[null,null,null,2]
[null,null,null,2]
[null,null,null,2]
[null,null,null,2]
[null,null,null,2]
[null,null,null,2]
[null,null,null,2]
[null,null,null,2]
[null,null,null,2]
[null,null,null,2]
[null,null,null,2]
[null,null,null,2]
[null,null,null,2]
[null,null,null,2]
[null,null,null,2]
[null,null,null,2]
[null,null,null,2]
[null,null,null,2]
[null,null,null,2]
[null,null,null,2]
[null,null,null,2]
[null,null,null,2]
[null,null,null,2]
[null,null,null,2]
[null,null,null,2]
[null,null,null,2]
[null,null,null,2]
[null,null,null,2]
[null,null,null,2]
[null,null,null,2]
[null,null,null,2]
[null,null,null,2]
[null,null,null,2]
[null,null,null,2]
[null,null,null,2]
[null,null,null,2]
[null,null,null,2]
[null,null,null,2]
[null,null,null,2]
[null,null,null,2]
[null,null,null,2]
[null,null,null,2]
[null,null,null,2]
[null,null,null,2]
[null,null,null,2]
[null,null,null,2]
[null,null,null,2]
[null,null,null,2]
[null,null,null,2]
[null,null,null,2]
[null,null,null,2]
[null,null,null,2]
[null,null,null,2]
[null,null,null,2]
[null,null,null,2]
[null,null,null,2]
[null,null,null,2]
[null,null,null,2]
[null,null,null,2]
[null,null,null,2]
[null,null,null,2]
[null,null,null,{"$f":"IF(B772=$F$1,1,2)","v":2}]
[null,null,null,2]
[null,null,null,2]
[null,null,null,2]
[null,null,null,2]
[null,null,null,2]
[null,null,null,2]
[null,null,null,2]
[null,null,null,2]
[null,null,null,2]
[null,null,null,2]
[null,null,null,2]
[null,null,null,2]
[null,null,null,2]
[null,null,null,2]
[null,null,null,2]
[null,null,null,2]
[null,null,null,2]
[null,null,null,2]
[null,null,null,2]
[null,null,null,2]
[null,null,null,2]
[null,null,null,2]
[null,null,null,2]
[null,null,null,2]
[null,null,null,2]
[null,null,null,2]
[null,null,null,2]
[null,null,null,2]
[null,null,null,2]
[null,null,null,2]
[null,null,null,2]
[null,null,null,2]
[null,null,null,2]
[null,null,null,2]
[null,null,null,2]
[null,null,null,2]
[null,null,null,2]
[null,null,null,2]
[null,null,null,2]
[null,null,null,2]
[null,null,null,2]
[null,null,null,2]
[null,null,null,2]
[null,null,null,2]
[null,null,null,2]
[null,null,null,2]
[null,null,null,2]
[null,null,null,2]
[null,null,null,2]
[null,null,null,2]
[null,null,null,2]
[null,null,null,2]
[null,null,null,2]
[null,null,null,2]
[null,null,null,2]
[null,null,null,2]
[null,null,null,2]
[null,null,null,2]
[null,null,null,2]
[null,null,null,2]
[null,null,null,2]
[null,null,null,2]
[null,null,null,2]
[null,null,null,{"$f":"IF(B836=$F$1,1,2)","v":2}]
[null,null,null,2]
[null,null,null,2]
[null,null,null,2]
[null,null,null,2]
[null,null,null,2]
[null,null,null,2]
[null,null,null,2]
[null,null,null,2]
[null,null,null,2]
[null,null,null,2]
[null,null,null,2]
[null,null,null,2]
[null,null,null,2]
[null,null,null,2]
[null,null,null,2]
[null,null,null,2]
[null,null,null,2]
[null,null,null,2]
[null,null,null,2]
[null,null,null,2]
[null,null,null,2]
[null,null,null,2]
[null,null,null,2]
[null,null,null,2]
[null,null,null,2]
[null,null,null,2]
[null,null,null,2]
[null,null,null,2]
[null,null,null,2]
[null,null,null,2]
[null,null,null,2]
[null,null,null,2]
[null,null,null,2]
[null,null,null,2]
[null,null,null,2]
[null,null,null,2]
[null,null,null,2]
[null,null,null,2]
[null,null,null,2]
[null,null,null,2]
[null,null,null,2]
[null,null,null,2]
[null,null,null,2]
[null,null,null,2]
[null,null,null,2]
[null,null,null,2]
[null,null,null,2]
[null,null,null,2]
[null,null,null,2]
[null,null,null,2]
[null,null,null,2]
[null,null,null,2]
[null,null,null,2]
[null,null,null,2]
[null,null,null,2]
[null,null,null,2]
[null,null,null,2]
[null,null,null,2]
[null,null,null,2]
[null,null,null,2]
[null,null,null,2]
[null,null,null,2]
[null,null,null,2]
[null,null,null,{"$f":"IF(B900=$F$1,1,2)","v":2}]
[null,null,null,2]
[null,null,null,2]
[null,null,null,2]
[null,null,null,2]
[null,null,null,2]
[null,null,null,2]
[null,null,null,2]
[null,null,null,2]
[null,null,null,2]
[null,null,null,2]
[null,null,null,2]
[null,null,null,2]
[null,null,null,2]
[null,null,null,2]
[null,null,null,2]
[null,null,null,2]
[null,null,null,2]
[null,null,null,2]
[null,null,null,2]
[null,null,null,2]
[null,null,null,2]
[null,null,null,2]
[null,null,null,2]
[null,null,null,2]
[null,null,null,2]
[null,null,null,2]
[null,null,null,2]
[null,null,null,2]
[null,null,null,2]
[null,null,null,2]
[null,null,null,2]
[null,null,null,2]
[null,null,null,2]
[null,null,null,2]
[null,null,null,2]
[null,null,null,2]
[null,null,null,2]
[null,null,null,2]
[null,null,null,2]
[null,null,null,2]
[null,null,null,2]
[null,null,null,2]
[null,null,null,2]
[null,null,null,2]
[null,null,null,2]
[null,null,null,2]
[null,null,null,2]
[null,null,null,2]
[null,null,null,2]
[null,null,null,2]
[null,null,null,2]
[null,null,null,2]
[null,null,null,2]
[null,null,null,2]
[null,null,null,2]
[null,null,null,2]
[null,null,null,2]
[null,null,null,2]
[null,null,null,2]
[null,null,null,2]
[null,null,null,2]
[null,null,null,2]
[null,null,null,2]
[null,null,null,{"$f":"IF(B964=$F$1,1,2)","v":2}]
[null,null,null,2]
[null,null,null,2]
[null,null,null,2]
[null,null,null,2]
[null,null,null,2]
[null,null,null,2]
[null,null,null,2]
[null,null,null,2]
[null,null,null,2]
[null,null,null,2]
[null,null,null,2]
[null,null,null,2]
[null,null,null,2]
[null,null,null,2]
[null,null,null,2]
[null,null,null,2]
[null,null,null,2]
[null,null,null,2]
[null,null,null,2]
[null,null,null,2]
[null,null,null,2]
[null,null,null,2]
[null,null,null,2]
[null,null,null,2]
[null,null,null,2]
[null,null,null,2]
[null,null,null,2]
[null,null,null,2]
[null,null,null,2]
[null,null,null,2]
[null,null,null,2]
[null,null,null,2]
[null,null,null,2]

{"sheet":"الكشف","index":1,"n_rows":205,"n_cols":17,"rows_kept":205,"cut":false,"hidden":false,"merged":[[1,1,1,5],[2,4,2,5]]}
[null,null,null,null,null,null,null,null,null,null,null,"المتاح","المباع"]
[null,"كشف توزيع الغاز لمربع المطابع وحدة الخنساء الدفعة الاولى",null,null,null,null,null,null,null,null,"show",{"$f":"200-N2","v":200},{"$f":"COUNTA(C5:C204)+1","v":1},{"$f":"SUM(D5:D204)","v":0},null,3800,12345]
[null,null,null,null,{"$f":"TODAY()","v":"2021-06-27"},null,null,null,null,null,null,null,"للكرت"]
[null,"الرقم ","الاسم ","العدد","المبلغ ","الملاحظات ",null,null,{"$f":"SUM(D5:D204)","v":0}]
[null,1]
[null,2]
[null,3]
[null,4]
[null,5]
[null,6]
[null,7]
[null,8]
[null,9]
[null,10]
[null,11]
[null,12]
[null,13]
[null,14]
[null,15]
[null,16]
[null,17]
[null,18]
[null,19]
[null,20]
[null,21]
[null,22]
[null,23]
[null,24]
[null,25]
[null,26]
[null,27]
[null,28]
[null,29]
[null,30]
[null,31]
[null,32]
[null,33]
[null,34]
[null,35]
[null,36]
[null,37]
[null,38]
[null,39]
[null,40]
[null,41]
[null,42]
[null,43]
[null,44]
[null,45]
[null,46]
[null,47]
[null,48]
[null,49]
[null,50]
[null,51]
[null,52]
[null,53]
[null,54]
[null,55]
[null,56]
[null,57]
[null,58]
[null,59]
[null,60]
[null,61]
[null,62]
[null,63]
[null,64]
[null,65]
[null,66]
[null,67]
[null,68]
[null,69]
[null,70]
[null,71]
[null,72]
[null,73]
[null,74]
[null,75]
[null,76]
[null,77]
[null,78]
[null,79]
[null,80]
[null,81]
[null,82]
[null,83]
[null,84]
[null,85]
[null,86]
[null,87]
[null,88]
[null,89]
[null,90]
[null,91]
[null,92]
[null,93]
[null,94]
[null,95]
[null,96]
[null,97]
[null,98]
[null,99]
[null,100]
[null,101]
[null,102]
[null,103]
[null,104]
[null,105]
[null,106]
[null,107]
[null,108]
[null,109]
[null,110]
[null,111]
[null,112]
[null,113]
[null,114]
[null,115]
[null,116]
[null,117]
[null,118]
[null,119]
[null,120]
[null,121]
[null,122]
[null,123]
[null,124]
[null,125]
[null,126]
[null,127]
[null,128]
[null,129]
[null,130]
[null,131]
[null,132]
[null,133]
[null,134]
[null,135]
[null,136]
[null,137]
[null,138]
[null,139]
[null,140]
[null,141]
[null,142]
[null,143]
[null,144]
[null,145]
[null,146]
[null,147]
[null,148]
[null,149]
[null,150]
[null,151]
[null,152]
[null,153]
[null,154]
[null,155]
[null,156]
[null,157]
[null,158]
[null,159]
[null,160]
[null,161]
[null,162]
[null,163]
[null,164]
[null,165]
[null,166]
[null,167]
[null,168]
[null,169]
[null,170]
[null,171]
[null,172]
[null,173]
[null,174]
[null,175]
[null,176]
[null,177]
[null,178]
[null,179]
[null,180]
[null,181]
[null,182]
[null,183]
[null,184]
[null,185]
[null,186]
[null,187]
[null,188]
[null,189]
[null,190]
[null,191]
[null,192]
[null,193]
[null,194]
[null,195]
[null,196]
[null,197]
[null,198]
[null,199]
[null,200]
[null,"الاجمالي "]

{"sheet":"ورقة4 (2)","index":2,"n_rows":71,"n_cols":12,"rows_kept":71,"cut":false,"hidden":false,"merged":[[71,1,71,11],[2,10,2,11],[1,1,1,11],[2,1,2,2]]}
[]
[null,{"$f":"الكشف!B2","v":"كشف توزيع الغاز لمربع المطابع وحدة الخنساء الدفعة الاولى"}]
[null,{"$f":"TODAY()","v":"2021-06-27"},null,null,null,null,null,null,null,null," 2021/   /        "]
[null,"الرقم ","الاسم ","بيان",null,"العدد","المبلغ ","بيان",null,"الرقم ","الاسم ","بيان"]
[null,1,{"$f":"الكشف!C5","v":0},{"$f":"الكشف!F5","v":0},null,27,{"$f":"الكشف!C31","v":0},{"$f":"الكشف!F31","v":0},null,53,{"$f":"الكشف!C57","v":0},{"$f":"الكشف!F57","v":0}]
[null,2,{"$f":"الكشف!C6","v":0},{"$f":"الكشف!F6","v":0},null,28,{"$f":"الكشف!C32","v":0},{"$f":"الكشف!F32","v":0},null,54,{"$f":"الكشف!C58","v":0},{"$f":"الكشف!F58","v":0}]
[null,3,{"$f":"الكشف!C7","v":0},{"$f":"الكشف!F7","v":0},null,29,{"$f":"الكشف!C33","v":0},{"$f":"الكشف!F33","v":0},null,55,{"$f":"الكشف!C59","v":0},{"$f":"الكشف!F59","v":0}]
[null,4,{"$f":"الكشف!C8","v":0},{"$f":"الكشف!F8","v":0},null,30,{"$f":"الكشف!C34","v":0},{"$f":"الكشف!F34","v":0},null,56,{"$f":"الكشف!C60","v":0},{"$f":"الكشف!F60","v":0}]
[null,5,{"$f":"الكشف!C9","v":0},{"$f":"الكشف!F9","v":0},null,31,{"$f":"الكشف!C35","v":0},{"$f":"الكشف!F35","v":0},null,57,{"$f":"الكشف!C61","v":0},{"$f":"الكشف!F61","v":0}]
[null,6,{"$f":"الكشف!C10","v":0},{"$f":"الكشف!F10","v":0},null,32,{"$f":"الكشف!C36","v":0},{"$f":"الكشف!F36","v":0},null,58,{"$f":"الكشف!C62","v":0},{"$f":"الكشف!F62","v":0}]
[null,7,{"$f":"الكشف!C11","v":0},{"$f":"الكشف!F11","v":0},null,33,{"$f":"الكشف!C37","v":0},{"$f":"الكشف!F37","v":0},null,59,{"$f":"الكشف!C63","v":0},{"$f":"الكشف!F63","v":0}]
[null,8,{"$f":"الكشف!C12","v":0},{"$f":"الكشف!F12","v":0},null,34,{"$f":"الكشف!C38","v":0},{"$f":"الكشف!F38","v":0},null,60,{"$f":"الكشف!C64","v":0},{"$f":"الكشف!F64","v":0}]
[null,9,{"$f":"الكشف!C13","v":0},{"$f":"الكشف!F13","v":0},null,35,{"$f":"الكشف!C39","v":0},{"$f":"الكشف!F39","v":0},null,61,{"$f":"الكشف!C65","v":0},{"$f":"الكشف!F65","v":0}]
[null,10,{"$f":"الكشف!C14","v":0},{"$f":"الكشف!F14","v":0},null,36,{"$f":"الكشف!C40","v":0},{"$f":"الكشف!F40","v":0},null,62,{"$f":"الكشف!C66","v":0},{"$f":"الكشف!F66","v":0}]
[null,11,{"$f":"الكشف!C15","v":0},{"$f":"الكشف!F15","v":0},null,37,{"$f":"الكشف!C41","v":0},{"$f":"الكشف!F41","v":0},null,63,{"$f":"الكشف!C67","v":0},{"$f":"الكشف!F67","v":0}]
[null,12,{"$f":"الكشف!C16","v":0},{"$f":"الكشف!F16","v":0},null,38,{"$f":"الكشف!C42","v":0},{"$f":"الكشف!F42","v":0},null,64,{"$f":"الكشف!C68","v":0},{"$f":"الكشف!F68","v":0}]
[null,13,{"$f":"الكشف!C17","v":0},{"$f":"الكشف!F17","v":0},null,39,{"$f":"الكشف!C43","v":0},{"$f":"الكشف!F43","v":0},null,65,{"$f":"الكشف!C69","v":0},{"$f":"الكشف!F69","v":0}]
[null,14,{"$f":"الكشف!C18","v":0},{"$f":"الكشف!F18","v":0},null,40,{"$f":"الكشف!C44","v":0},{"$f":"الكشف!F44","v":0},null,66,{"$f":"الكشف!C70","v":0},{"$f":"الكشف!F70","v":0}]
[null,15,{"$f":"الكشف!C19","v":0},{"$f":"الكشف!F19","v":0},null,41,{"$f":"الكشف!C45","v":0},{"$f":"الكشف!F45","v":0},null,67,{"$f":"الكشف!C71","v":0},{"$f":"الكشف!F71","v":0}]
[null,16,{"$f":"الكشف!C20","v":0},{"$f":"الكشف!F20","v":0},null,42,{"$f":"الكشف!C46","v":0},{"$f":"الكشف!F46","v":0},null,68,{"$f":"الكشف!C72","v":0},{"$f":"الكشف!F72","v":0}]
[null,17,{"$f":"الكشف!C21","v":0},{"$f":"الكشف!F21","v":0},null,43,{"$f":"الكشف!C47","v":0},{"$f":"الكشف!F47","v":0},null,69,{"$f":"الكشف!C73","v":0},{"$f":"الكشف!F73","v":0}]
[null,18,{"$f":"الكشف!C22","v":0},{"$f":"الكشف!F22","v":0},null,44,{"$f":"الكشف!C48","v":0},{"$f":"الكشف!F48","v":0},null,70,{"$f":"الكشف!C74","v":0},{"$f":"الكشف!F74","v":0}]
[null,19,{"$f":"الكشف!C23","v":0},{"$f":"الكشف!F23","v":0},null,45,{"$f":"الكشف!C49","v":0},{"$f":"الكشف!F49","v":0},null,71,{"$f":"الكشف!C75","v":0},{"$f":"الكشف!F75","v":0}]
[null,20,{"$f":"الكشف!C24","v":0},{"$f":"الكشف!F24","v":0},null,46,{"$f":"الكشف!C50","v":0},{"$f":"الكشف!F50","v":0},null,72,{"$f":"الكشف!C76","v":0},{"$f":"الكشف!F76","v":0}]
[null,21,{"$f":"الكشف!C25","v":0},{"$f":"الكشف!F25","v":0},null,47,{"$f":"الكشف!C51","v":0},{"$f":"الكشف!F51","v":0},null,73,{"$f":"الكشف!C77","v":0},{"$f":"الكشف!F77","v":0}]
[null,22,{"$f":"الكشف!C26","v":0},{"$f":"الكشف!F26","v":0},null,48,{"$f":"الكشف!C52","v":0},{"$f":"الكشف!F52","v":0},null,74,{"$f":"الكشف!C78","v":0},{"$f":"الكشف!F78","v":0}]
[null,23,{"$f":"الكشف!C27","v":0},{"$f":"الكشف!F27","v":0},null,49,{"$f":"الكشف!C53","v":0},{"$f":"الكشف!F53","v":0},null,75,{"$f":"الكشف!C79","v":0},{"$f":"الكشف!F79","v":0}]
[null,24,{"$f":"الكشف!C28","v":0},{"$f":"الكشف!F28","v":0},null,50,{"$f":"الكشف!C54","v":0},{"$f":"الكشف!F54","v":0},null,76,{"$f":"الكشف!C80","v":0},{"$f":"الكشف!F80","v":0}]
[null,25,{"$f":"الكشف!C29","v":0},{"$f":"الكشف!F29","v":0},null,51,{"$f":"الكشف!C55","v":0},{"$f":"الكشف!F55","v":0},null,77,{"$f":"الكشف!C81","v":0},{"$f":"الكشف!F81","v":0}]
[null,26,{"$f":"الكشف!C30","v":0},{"$f":"الكشف!F30","v":0},null,52,{"$f":"الكشف!C56","v":0},{"$f":"الكشف!F56","v":0},null,78,{"$f":"الكشف!C82","v":0},{"$f":"الكشف!F82","v":0}]
[null,79,{"$f":"الكشف!C83","v":0},{"$f":"الكشف!F83","v":0},null,106,{"$f":"الكشف!C110","v":0},{"$f":"الكشف!F110","v":0},null,133,{"$f":"الكشف!C137","v":0},{"$f":"الكشف!F137","v":0}]
[null,80,{"$f":"الكشف!C84","v":0},{"$f":"الكشف!F84","v":0},null,107,{"$f":"الكشف!C111","v":0},{"$f":"الكشف!F111","v":0},null,134,{"$f":"الكشف!C138","v":0},{"$f":"الكشف!F138","v":0}]
[null,81,{"$f":"الكشف!C85","v":0},{"$f":"الكشف!F85","v":0},null,108,{"$f":"الكشف!C112","v":0},{"$f":"الكشف!F112","v":0},null,135,{"$f":"الكشف!C139","v":0},{"$f":"الكشف!F139","v":0}]
[null,82,{"$f":"الكشف!C86","v":0},{"$f":"الكشف!F86","v":0},null,109,{"$f":"الكشف!C113","v":0},{"$f":"الكشف!F113","v":0},null,136,{"$f":"الكشف!C140","v":0},{"$f":"الكشف!F140","v":0}]
[null,83,{"$f":"الكشف!C87","v":0},{"$f":"الكشف!F87","v":0},null,110,{"$f":"الكشف!C114","v":0},{"$f":"الكشف!F114","v":0},null,137,{"$f":"الكشف!C141","v":0},{"$f":"الكشف!F141","v":0}]
[null,84,{"$f":"الكشف!C88","v":0},{"$f":"الكشف!F88","v":0},null,111,{"$f":"الكشف!C115","v":0},{"$f":"الكشف!F115","v":0},null,138,{"$f":"الكشف!C142","v":0},{"$f":"الكشف!F142","v":0}]
[null,85,{"$f":"الكشف!C89","v":0},{"$f":"الكشف!F89","v":0},null,112,{"$f":"الكشف!C116","v":0},{"$f":"الكشف!F116","v":0},null,139,{"$f":"الكشف!C143","v":0},{"$f":"الكشف!F143","v":0}]
[null,86,{"$f":"الكشف!C90","v":0},{"$f":"الكشف!F90","v":0},null,113,{"$f":"الكشف!C117","v":0},{"$f":"الكشف!F117","v":0},null,140,{"$f":"الكشف!C144","v":0},{"$f":"الكشف!F144","v":0}]
[null,87,{"$f":"الكشف!C91","v":0},{"$f":"الكشف!F91","v":0},null,114,{"$f":"الكشف!C118","v":0},{"$f":"الكشف!F118","v":0},null,141,{"$f":"الكشف!C145","v":0},{"$f":"الكشف!F145","v":0}]
[null,88,{"$f":"الكشف!C92","v":0},{"$f":"الكشف!F92","v":0},null,115,{"$f":"الكشف!C119","v":0},{"$f":"الكشف!F119","v":0},null,142,{"$f":"الكشف!C146","v":0},{"$f":"الكشف!F146","v":0}]
[null,89,{"$f":"الكشف!C93","v":0},{"$f":"الكشف!F93","v":0},null,116,{"$f":"الكشف!C120","v":0},{"$f":"الكشف!F120","v":0},null,143,{"$f":"الكشف!C147","v":0},{"$f":"الكشف!F147","v":0}]
[null,90,{"$f":"الكشف!C94","v":0},{"$f":"الكشف!F94","v":0},null,117,{"$f":"الكشف!C121","v":0},{"$f":"الكشف!F121","v":0},null,144,{"$f":"الكشف!C148","v":0},{"$f":"الكشف!F148","v":0}]
[null,91,{"$f":"الكشف!C95","v":0},{"$f":"الكشف!F95","v":0},null,118,{"$f":"الكشف!C122","v":0},{"$f":"الكشف!F122","v":0},null,145,{"$f":"الكشف!C149","v":0},{"$f":"الكشف!F149","v":0}]
[null,92,{"$f":"الكشف!C96","v":0},{"$f":"الكشف!F96","v":0},null,119,{"$f":"الكشف!C123","v":0},{"$f":"الكشف!F123","v":0},null,146,{"$f":"الكشف!C150","v":0},{"$f":"الكشف!F150","v":0}]
[null,93,{"$f":"الكشف!C97","v":0},{"$f":"الكشف!F97","v":0},null,120,{"$f":"الكشف!C124","v":0},{"$f":"الكشف!F124","v":0},null,147,{"$f":"الكشف!C151","v":0},{"$f":"الكشف!F151","v":0}]
[null,94,{"$f":"الكشف!C98","v":0},{"$f":"الكشف!F98","v":0},null,121,{"$f":"الكشف!C125","v":0},{"$f":"الكشف!F125","v":0},null,148,{"$f":"الكشف!C152","v":0},{"$f":"الكشف!F152","v":0}]
[null,95,{"$f":"الكشف!C99","v":0},{"$f":"الكشف!F99","v":0},null,122,{"$f":"الكشف!C126","v":0},{"$f":"الكشف!F126","v":0},null,149,{"$f":"الكشف!C153","v":0},{"$f":"الكشف!F153","v":0}]
[null,96,{"$f":"الكشف!C100","v":0},{"$f":"الكشف!F100","v":0},null,123,{"$f":"الكشف!C127","v":0},{"$f":"الكشف!F127","v":0},null,150,{"$f":"الكشف!C154","v":0},{"$f":"الكشف!F154","v":0}]
[null,97,{"$f":"الكشف!C101","v":0},{"$f":"الكشف!F101","v":0},null,124,{"$f":"الكشف!C128","v":0},{"$f":"الكشف!F128","v":0},null,151,{"$f":"الكشف!C155","v":0},{"$f":"الكشف!F155","v":0}]
[null,98,{"$f":"الكشف!C102","v":0},{"$f":"الكشف!F102","v":0},null,125,{"$f":"الكشف!C129","v":0},{"$f":"الكشف!F129","v":0},null,152,{"$f":"الكشف!C156","v":0},{"$f":"الكشف!F156","v":0}]
[null,99,{"$f":"الكشف!C103","v":0},{"$f":"الكشف!F103","v":0},null,126,{"$f":"الكشف!C130","v":0},{"$f":"الكشف!F130","v":0},null,153,{"$f":"الكشف!C157","v":0},{"$f":"الكشف!F157","v":0}]
[null,100,{"$f":"الكشف!C104","v":0},{"$f":"الكشف!F104","v":0},null,127,{"$f":"الكشف!C131","v":0},{"$f":"الكشف!F131","v":0},null,154,{"$f":"الكشف!C158","v":0},{"$f":"الكشف!F158","v":0}]
[null,101,{"$f":"الكشف!C105","v":0},{"$f":"الكشف!F105","v":0},null,128,{"$f":"الكشف!C132","v":0},{"$f":"الكشف!F132","v":0},null,155,{"$f":"الكشف!C159","v":0},{"$f":"الكشف!F159","v":0}]
[null,102,{"$f":"الكشف!C106","v":0},{"$f":"الكشف!F106","v":0},null,129,{"$f":"الكشف!C133","v":0},{"$f":"الكشف!F133","v":0},null,156,{"$f":"الكشف!C160","v":0},{"$f":"الكشف!F160","v":0}]
[null,103,{"$f":"الكشف!C107","v":0},{"$f":"الكشف!F107","v":0},null,130,{"$f":"الكشف!C134","v":0},{"$f":"الكشف!F134","v":0},null,157,{"$f":"الكشف!C161","v":0},{"$f":"الكشف!F161","v":0}]
[null,104,{"$f":"الكشف!C108","v":0},{"$f":"الكشف!F108","v":0},null,131,{"$f":"الكشف!C135","v":0},{"$f":"الكشف!F135","v":0},null,158,{"$f":"الكشف!C162","v":0},{"$f":"الكشف!F162","v":0}]
[null,105,{"$f":"الكشف!C109","v":0},{"$f":"الكشف!F109","v":0},null,132,{"$f":"الكشف!C136","v":0},{"$f":"الكشف!F136","v":0},null,159,{"$f":"الكشف!C163","v":0},{"$f":"الكشف!F163","v":0}]
[null,160,{"$f":"الكشف!C164","v":0},{"$f":"الكشف!F164","v":0},null,174,{"$f":"الكشف!C178","v":0},{"$f":"الكشف!F178","v":0},null,188,{"$f":"الكشف!C192","v":0},{"$f":"الكشف!F192","v":0}]
[null,161,{"$f":"الكشف!C165","v":0},{"$f":"الكشف!F165","v":0},null,175,{"$f":"الكشف!C179","v":0},{"$f":"الكشف!F179","v":0},null,189,{"$f":"الكشف!C193","v":0},{"$f":"الكشف!F193","v":0}]
[null,162,{"$f":"الكشف!C166","v":0},{"$f":"الكشف!F166","v":0},null,176,{"$f":"الكشف!C180","v":0},{"$f":"الكشف!F180","v":0},null,190,{"$f":"الكشف!C194","v":0},{"$f":"الكشف!F194","v":0}]
[null,163,{"$f":"الكشف!C167","v":0},{"$f":"الكشف!F167","v":0},null,177,{"$f":"الكشف!C181","v":0},{"$f":"الكشف!F181","v":0},null,191,{"$f":"الكشف!C195","v":0},{"$f":"الكشف!F195","v":0}]
[null,164,{"$f":"الكشف!C168","v":0},{"$f":"الكشف!F168","v":0},null,178,{"$f":"الكشف!C182","v":0},{"$f":"الكشف!F182","v":0},null,192,{"$f":"الكشف!C196","v":0},{"$f":"الكشف!F196","v":0}]
[null,165,{"$f":"الكشف!C169","v":0},{"$f":"الكشف!F169","v":0},null,179,{"$f":"الكشف!C183","v":0},{"$f":"الكشف!F183","v":0},null,193,{"$f":"الكشف!C197","v":0},{"$f":"الكشف!F197","v":0}]
[null,166,{"$f":"الكشف!C170","v":0},{"$f":"الكشف!F170","v":0},null,180,{"$f":"الكشف!C184","v":0},{"$f":"الكشف!F184","v":0},null,194,{"$f":"الكشف!C198","v":0},{"$f":"الكشف!F198","v":0}]
[null,167,{"$f":"الكشف!C171","v":0},{"$f":"الكشف!F171","v":0},null,181,{"$f":"الكشف!C185","v":0},{"$f":"الكشف!F185","v":0},null,195,{"$f":"الكشف!C199","v":0},{"$f":"الكشف!F199","v":0}]
[null,168,{"$f":"الكشف!C172","v":0},{"$f":"الكشف!F172","v":0},null,182,{"$f":"الكشف!C186","v":0},{"$f":"الكشف!F186","v":0},null,196,{"$f":"الكشف!C200","v":0},{"$f":"الكشف!F200","v":0}]
[null,169,{"$f":"الكشف!C173","v":0},{"$f":"الكشف!F173","v":0},null,183,{"$f":"الكشف!C187","v":0},{"$f":"الكشف!F187","v":0},null,197,{"$f":"الكشف!C201","v":0},{"$f":"الكشف!F201","v":0}]
[null,170,{"$f":"الكشف!C174","v":0},{"$f":"الكشف!F174","v":0},null,184,{"$f":"الكشف!C188","v":0},{"$f":"الكشف!F188","v":0},null,198,{"$f":"الكشف!C202","v":0},{"$f":"الكشف!F202","v":0}]
[null,171,{"$f":"الكشف!C175","v":0},{"$f":"الكشف!F175","v":0},null,185,{"$f":"الكشف!C189","v":0},{"$f":"الكشف!F189","v":0},null,199,{"$f":"الكشف!C203","v":0},{"$f":"الكشف!F203","v":0}]
[null,172,{"$f":"الكشف!C176","v":0},{"$f":"الكشف!F176","v":0},null,186,{"$f":"الكشف!C190","v":0},{"$f":"الكشف!F190","v":0},null,200,{"$f":"الكشف!C204","v":0},{"$f":"الكشف!F204","v":0}]
[null,173,{"$f":"الكشف!C177","v":0},{"$f":"الكشف!F177","v":0},null,187,{"$f":"الكشف!C191","v":0},{"$f":"الكشف!F191","v":0}]

{"sheet":"ورقة1","index":3,"n_rows":5,"n_cols":6,"rows_kept":5,"cut":false,"hidden":false,"merged":[]}
[]
[]
[]
[]
[null,"البيان","النظرية الاجمالية","النظرية المتغيرة","النظرية المستغلة","الملاحظات"]